{"text_format":"1","workbook":"xlsx","n_sheets":2,"sheets":["Blad2","Blad3"],"not_rendered":{"charts":0,"images":0,"macros":1,"external_links":0,"defined_names":6,"comments":0,"pivot_tables":0},"unopened":[],"bounds":{"document_bytes":16777216,"sheet_cells":100000,"rows_first":2000,"rows_last":500,"rows_between":2000,"halvings":0,"cell_chars":16384,"cell_head_chars":4096},"cells_cut":0,"cells_raw":0,"read":"whole","date_system":"1900"}

{"sheet":"Blad2","index":0,"n_rows":765,"n_cols":18,"rows_kept":765,"cut":false,"hidden":false,"merged":[[36,1,36,16],[37,2,37,16],[34,1,34,15],[0,7,0,11],[35,1,35,16],[2,8,2,10],[4,1,4,7],[4,11,4,12],[4,9,4,10],[4,13,4,16]]}
[{"$f":"DATE(jaar,1,1)","v":"2021-01-01"},null,"Dit overzicht houd zelf de voorraad bij, door elke dag",null,null,null,null,{"$f":"TODAY()","v":"2021-02-26"},null,null,null,null,null,"Kleur legende:",null,"068168883",null,{"$f":"IF(A1=TODAY(),MOD(ROW(),2),\"\")","v":""}]
[{"$f":"A1+1","v":"2021-01-02"},null,"het gebruik per dag van het totaal af te trekken.",null,null,null,null,null,null,null,null,null,null,"Oranje is voor minder dan 10 dagen voorraad.",null,null,null,""]
[{"$f":"A2+1","v":"2021-01-03"},null," hier regelmatig op klikken is daarom wel  gewenst.",null,null,null,null,null,{"$f":"IF(COUNT(tal)>0,\"Let op bestellen !!\",\"\")","v":""},null,null,null,null,"Rood is voor minder dan 5 dagen voorraad.",null,null,null,""]
["2021-01-04",null,null,null,null,null,null,null,null,null,null,null,null,null,null,null,null,""]
["2021-01-05","Overzicht Medicijnen Voorraad",null,null,null,null,null,null,"kous:",null,null,"vervangen:",null,{"$f":"IF(COUNT(J5)=1,J5+3,\"\")","v":""},null,null,null,""]
["2021-01-06",null,null,"start/stop","huidig","naam","datum","gebruiks","ontvangen","gebruik","gebruik","rest","dagen","Datum",null,{"$f":"YEAR(NOW())","v":2021},"besteld",""]
["2021-01-07","nr.","Omschrijving medicijnen","medicatie","Receptnummer","Arts","aangevuld","eenheid","eenheden","per  dag",null,"voorraad","voorraad","Einddatum",null,"Status","x",""]
["2021-01-08",{"$f":"IF(C8=\"\",\"\",IF(ROW()=1,1,MAX(INDIRECT(\"B\"&ROW()-1&\":B1\",TRUE))+1))","v":""},null,null,null,null,null,null,null,null,null,{"$f":"IF(COUNT(I8,G8)=2,I8-(TODAY()-G8)*J8,\"\")","v":""},{"$f":"IFERROR(ROUNDDOWN(L8/J8,0),\"\")","v":""},{"$f":"IF(COUNT(G8,I8,J8)=3,G8+(I8/J8),\"\")","v":""},{"$f":"IF(Q8=\"x\",\"\",IF(M8<=10,B8,\"\"))","v":""},{"$f":"IF(AND(D8>0,G8=\"\"),\"Gestopt\",IF(Q8=\"x\",\"Besteld\",IF(COUNT(G8,I8,J8)=3,IF(M8<=5,\"Nu bestellen\",IF(M8<=10,\"Nog \"&N8-TODAY()-5&\" dagen\",\"OK\")),\"\")))","v":""},null,""]
["2021-01-09",{"$f":"IF(C9=\"\",\"\",IF(ROW()=1,1,MAX(INDIRECT(\"B\"&ROW()-1&\":B1\",TRUE))+1))","v":""},null,null,null,null,null,null,null,null,null,"","","","","",null,""]
["2021-01-10","",null,null,null,null,null,null,null,null,null,"","","","","",null,""]
["2021-01-11","",null,null,null,null,null,null,null,null,null,"","","","","",null,""]
["2021-01-12","",null,null,null,null,null,null,null,null,null,"","","","","",null,""]
["2021-01-13","",null,null,null,null,null,null,null,null,null,"","","","","",null,""]
["2021-01-14","",null,null,null,null,null,null,null,null,null,"","","","","",null,""]
["2021-01-15","",null,null,null,null,null,null,null,null,null,"","","","","",null,""]
["2021-01-16","",null,null,null,null,null,null,null,null,null,"","","","","",null,""]
["2021-01-17","",null,null,null,null,null,null,null,null,null,"","","","","",null,""]
["2021-01-18","",null,null,null,null,null,null,null,null,null,"","","","","",null,""]
["2021-01-19","",null,null,null,null,null,null,null,null,null,"","","","","",null,""]
["2021-01-20","",null,null,null,null,null,null,null,null,null,"","","","","",null,""]
["2021-01-21","",null,null,null,null,null,null,null,null,null,"","","","","",null,""]
["2021-01-22","",null,null,null,null,null,null,null,null,null,"","","","","",null,""]
["2021-01-23","",null,null,null,null,null,null,null,null,null,"","","","","",null,""]
["2021-01-24","",null,null,null,null,null,null,null,null,null,"","","","","",null,""]
["2021-01-25","",null,null,null,null,null,null,null,null,null,"","","","","",null,""]
["2021-01-26","",null,null,null,null,null,null,null,null,null,"","","","","",null,""]
["2021-01-27","",null,null,null,null,null,null,null,null,null,"","","","","",null,""]
["2021-01-28","",null,null,null,null,null,null,null,null,null,"","","","","",null,""]
["2021-01-29","",null,null,null,null,null,null,null,null,null,"","","","","",null,""]
["2021-01-30","",null,null,null,null,null,null,null,null,null,"","","","","",null,""]
["2021-01-31","",null,null,null,null,null,null,null,null,null,"","","","","",null,""]
["2021-02-01","",null,null,null,null,null,null,null,null,null,"","","","","",null,""]
["2021-02-02","",null,null,null,null,null,null,null,null,null,"","","","","",null,""]
["2021-02-03","",null,null,null,null,null,null,null,null,null,"","","","","",null,""]
["2021-02-04","Gebruik de Tab toets of de cursor bestuur toetsen",null,null,null,null,null,null,null,null,null,null,null,null,null,null,null,""]
["2021-02-05","In de kolom \"nog in voorraad\" zijn de medicijnen van vandaag al afgetrokken, houd hier rekening mee als je twijfelt of je ze wel hebt ingenomen!",null,null,null,null,null,null,null,null,null,null,null,null,null,null,null,""]
["2021-02-06","Als je tijdelijk stopt met de medicatie, verwijder dan alléén \"datum aangevuld\" In de status verschijnt nu \"Gestopt\" begin je weer, zet dan de start datum in \"datum aangevuld\"",null,null,null,null,null,null,null,null,null,null,null,null,null,null,null,""]
["2021-02-07",null,"Dit werkblad is beveiligd zonder wachtwoord",null,null,null,null,null,null,null,null,null,null,null,null,null,null,""]
["2021-02-08",null,null,null,null,null,null,null,null,null,null,null,null,null,null,null,null,""]
["2021-02-09",null,null,null,null,null,null,null,null,null,null,null,null,null,null,null,null,""]
["2021-02-10",null,null,null,null,null,null,null,null,null,null,null,null,null,null,null,null,""]
["2021-02-11",null,null,null,null,null,null,null,null,null,null,null,null,null,null,null,null,""]
["2021-02-12",null,null,null,null,null,null,null,null,null,null,null,null,null,null,null,null,""]
["2021-02-13",null,null,null,null,null,null,null,null,null,null,null,null,null,null,null,null,""]
["2021-02-14",null,null,null,null,null,null,null,null,null,null,null,null,null,null,null,null,""]
["2021-02-15",null,null,null,null,null,null,null,null,null,null,null,null,null,null,null,null,""]
["2021-02-16",null,null,null,null,null,null,null,null,null,null,null,null,null,null,null,null,""]
["2021-02-17",null,null,null,null,null,null,null,null,null,null,null,null,null,null,null,null,""]
["2021-02-18",null,null,null,null,null,null,null,null,null,null,null,null,null,null,null,null,""]
["2021-02-19",null,null,null,null,null,null,null,null,null,null,null,null,null,null,null,null,""]
["2021-02-20",null,null,null,null,null,null,null,null,null,null,null,null,null,null,null,null,""]
["2021-02-21",null,null,null,null,null,null,null,null,null,null,null,null,null,null,null,null,""]
["2021-02-22",null,null,null,null,null,null,null,null,null,null,null,null,null,null,null,null,""]
["2021-02-23",null,null,null,null,null,null,null,null,null,null,null,null,null,null,null,null,""]
["2021-02-24",null,null,null,null,null,null,null,null,null,null,null,null,null,null,null,null,""]
["2021-02-25",null,null,null,null,null,null,null,null,null,null,null,null,null,null,null,null,""]
["2021-02-26",null,null,null,null,null,null,null,null,null,null,null,null,null,null,null,null,1]
["2021-02-27",null,null,null,null,null,null,null,null,null,null,null,null,null,null,null,null,""]
["2021-02-28",null,null,null,null,null,null,null,null,null,null,null,null,null,null,null,null,""]
["2021-03-01",null,null,null,null,null,null,null,null,null,null,null,null,null,null,null,null,""]
["2021-03-02",null,null,null,null,null,null,null,null,null,null,null,null,null,null,null,null,""]
["2021-03-03",null,null,null,null,null,null,null,null,null,null,null,null,null,null,null,null,""]
["2021-03-04",null,null,null,null,null,null,null,null,null,null,null,null,null,null,null,null,""]
["2021-03-05",null,null,null,null,null,null,null,null,null,null,null,null,null,null,null,null,""]
["2021-03-06",null,null,null,null,null,null,null,null,null,null,null,null,null,null,null,null,{"$f":"IF(A65=TODAY(),MOD(ROW(),2),\"\")","v":""}]
["2021-03-07",null,null,null,null,null,null,null,null,null,null,null,null,null,null,null,null,""]
[{"$f":"A66+1","v":"2021-03-08"},null,null,null,null,null,null,null,null,null,null,null,null,null,null,null,null,""]
["2021-03-09",null,null,null,null,null,null,null,null,null,null,null,null,null,null,null,null,""]
["2021-03-10",null,null,null,null,null,null,null,null,null,null,null,null,null,null,null,null,""]
["2021-03-11",null,null,null,null,null,null,null,null,null,null,null,null,null,null,null,null,""]
["2021-03-12",null,null,null,null,null,null,null,null,null,null,null,null,null,null,null,null,""]
["2021-03-13",null,null,null,null,null,null,null,null,null,null,null,null,null,null,null,null,""]
["2021-03-14",null,null,null,null,null,null,null,null,null,null,null,null,null,null,null,null,""]
["2021-03-15",null,null,null,null,null,null,null,null,null,null,null,null,null,null,null,null,""]
["2021-03-16",null,null,null,null,null,null,null,null,null,null,null,null,null,null,null,null,""]
["2021-03-17",null,null,null,null,null,null,null,null,null,null,null,null,null,null,null,null,""]
["2021-03-18",null,null,null,null,null,null,null,null,null,null,null,null,null,null,null,null,""]
["2021-03-19",null,null,null,null,null,null,null,null,null,null,null,null,null,null,null,null,""]
["2021-03-20",null,null,null,null,null,null,null,null,null,null,null,null,null,null,null,null,""]
["2021-03-21",null,null,null,null,null,null,null,null,null,null,null,null,null,null,null,null,""]
["2021-03-22",null,null,null,null,null,null,null,null,null,null,null,null,null,null,null,null,""]
["2021-03-23",null,null,null,null,null,null,null,null,null,null,null,null,null,null,null,null,""]
["2021-03-24",null,null,null,null,null,null,null,null,null,null,null,null,null,null,null,null,""]
["2021-03-25",null,null,null,null,null,null,null,null,null,null,null,null,null,null,null,null,""]
["2021-03-26",null,null,null,null,null,null,null,null,null,null,null,null,null,null,null,null,""]
["2021-03-27",null,null,null,null,null,null,null,null,null,null,null,null,null,null,null,null,""]
["2021-03-28",null,null,null,null,null,null,null,null,null,null,null,null,null,null,null,null,""]
["2021-03-29",null,null,null,null,null,null,null,null,null,null,null,null,null,null,null,null,""]
["2021-03-30",null,null,null,null,null,null,null,null,null,null,null,null,null,null,null,null,""]
["2021-03-31",null,null,null,null,null,null,null,null,null,null,null,null,null,null,null,null,""]
["2021-04-01",null,null,null,null,null,null,null,null,null,null,null,null,null,null,null,null,""]
["2021-04-02",null,null,null,null,null,null,null,null,null,null,null,null,null,null,null,null,""]
["2021-04-03",null,null,null,null,null,null,null,null,null,null,null,null,null,null,null,null,""]
["2021-04-04",null,null,null,null,null,null,null,null,null,null,null,null,null,null,null,null,""]
["2021-04-05",null,null,null,null,null,null,null,null,null,null,null,null,null,null,null,null,""]
["2021-04-06",null,null,null,null,null,null,null,null,null,null,null,null,null,null,null,null,""]
["2021-04-07",null,null,null,null,null,null,null,null,null,null,null,null,null,null,null,null,""]
["2021-04-08",null,null,null,null,null,null,null,null,null,null,null,null,null,null,null,null,""]
["2021-04-09",null,null,null,null,null,null,null,null,null,null,null,null,null,null,null,null,""]
["2021-04-10",null,null,null,null,null,null,null,null,null,null,null,null,null,null,null,null,""]
["2021-04-11",null,null,null,null,null,null,null,null,null,null,null,null,null,null,null,null,""]
["2021-04-12",null,null,null,null,null,null,null,null,null,null,null,null,null,null,null,null,""]
["2021-04-13",null,null,null,null,null,null,null,null,null,null,null,null,null,null,null,null,""]
["2021-04-14",null,null,null,null,null,null,null,null,null,null,null,null,null,null,null,null,""]
["2021-04-15",null,null,null,null,null,null,null,null,null,null,null,null,null,null,null,null,""]
["2021-04-16",null,null,null,null,null,null,null,null,null,null,null,null,null,null,null,null,""]
["2021-04-17",null,null,null,null,null,null,null,null,null,null,null,null,null,null,null,null,""]
["2021-04-18",null,null,null,null,null,null,null,null,null,null,null,null,null,null,null,null,""]
["2021-04-19",null,null,null,null,null,null,null,null,null,null,null,null,null,null,null,null,""]
["2021-04-20",null,null,null,null,null,null,null,null,null,null,null,null,null,null,null,null,""]
["2021-04-21",null,null,null,null,null,null,null,null,null,null,null,null,null,null,null,null,""]
["2021-04-22",null,null,null,null,null,null,null,null,null,null,null,null,null,null,null,null,""]
["2021-04-23",null,null,null,null,null,null,null,null,null,null,null,null,null,null,null,null,""]
["2021-04-24",null,null,null,null,null,null,null,null,null,null,null,null,null,null,null,null,""]
["2021-04-25",null,null,null,null,null,null,null,null,null,null,null,null,null,null,null,null,""]
["2021-04-26",null,null,null,null,null,null,null,null,null,null,null,null,null,null,null,null,""]
["2021-04-27",null,null,null,null,null,null,null,null,null,null,null,null,null,null,null,null,""]
["2021-04-28",null,null,null,null,null,null,null,null,null,null,null,null,null,null,null,null,""]
["2021-04-29",null,null,null,null,null,null,null,null,null,null,null,null,null,null,null,null,""]
["2021-04-30",null,null,null,null,null,null,null,null,null,null,null,null,null,null,null,null,""]
["2021-05-01",null,null,null,null,null,null,null,null,null,null,null,null,null,null,null,null,""]
["2021-05-02",null,null,null,null,null,null,null,null,null,null,null,null,null,null,null,null,""]
["2021-05-03",null,null,null,null,null,null,null,null,null,null,null,null,null,null,null,null,""]
["2021-05-04",null,null,null,null,null,null,null,null,null,null,null,null,null,null,null,null,""]
["2021-05-05",null,null,null,null,null,null,null,null,null,null,null,null,null,null,null,null,""]
["2021-05-06",null,null,null,null,null,null,null,null,null,null,null,null,null,null,null,null,""]
["2021-05-07",null,null,null,null,null,null,null,null,null,null,null,null,null,null,null,null,""]
["2021-05-08",null,null,null,null,null,null,null,null,null,null,null,null,null,null,null,null,""]
["2021-05-09",null,null,null,null,null,null,null,null,null,null,null,null,null,null,null,null,{"$f":"IF(A129=TODAY(),MOD(ROW(),2),\"\")","v":""}]
["2021-05-10",null,null,null,null,null,null,null,null,null,null,null,null,null,null,null,null,""]
[{"$f":"A130+1","v":"2021-05-11"},null,null,null,null,null,null,null,null,null,null,null,null,null,null,null,null,""]
["2021-05-12",null,null,null,null,null,null,null,null,null,null,null,null,null,null,null,null,""]
["2021-05-13",null,null,null,null,null,null,null,null,null,null,null,null,null,null,null,null,""]
["2021-05-14",null,null,null,null,null,null,null,null,null,null,null,null,null,null,null,null,""]
["2021-05-15",null,null,null,null,null,null,null,null,null,null,null,null,null,null,null,null,""]
["2021-05-16",null,null,null,null,null,null,null,null,null,null,null,null,null,null,null,null,""]
["2021-05-17",null,null,null,null,null,null,null,null,null,null,null,null,null,null,null,null,""]
["2021-05-18",null,null,null,null,null,null,null,null,null,null,null,null,null,null,null,null,""]
["2021-05-19",null,null,null,null,null,null,null,null,null,null,null,null,null,null,null,null,""]
["2021-05-20",null,null,null,null,null,null,null,null,null,null,null,null,null,null,null,null,""]
["2021-05-21",null,null,null,null,null,null,null,null,null,null,null,null,null,null,null,null,""]
["2021-05-22",null,null,null,null,null,null,null,null,null,null,null,null,null,null,null,null,""]
["2021-05-23",null,null,null,null,null,null,null,null,null,null,null,null,null,null,null,null,""]
["2021-05-24",null,null,null,null,null,null,null,null,null,null,null,null,null,null,null,null,""]
["2021-05-25",null,null,null,null,null,null,null,null,null,null,null,null,null,null,null,null,""]
["2021-05-26",null,null,null,null,null,null,null,null,null,null,null,null,null,null,null,null,""]
["2021-05-27",null,null,null,null,null,null,null,null,null,null,null,null,null,null,null,null,""]
["2021-05-28",null,null,null,null,null,null,null,null,null,null,null,null,null,null,null,null,""]
["2021-05-29",null,null,null,null,null,null,null,null,null,null,null,null,null,null,null,null,""]
["2021-05-30",null,null,null,null,null,null,null,null,null,null,null,null,null,null,null,null,""]
["2021-05-31",null,null,null,null,null,null,null,null,null,null,null,null,null,null,null,null,""]
["2021-06-01",null,null,null,null,null,null,null,null,null,null,null,null,null,null,null,null,""]
["2021-06-02",null,null,null,null,null,null,null,null,null,null,null,null,null,null,null,null,""]
["2021-06-03",null,null,null,null,null,null,null,null,null,null,null,null,null,null,null,null,""]
["2021-06-04",null,null,null,null,null,null,null,null,null,null,null,null,null,null,null,null,""]
["2021-06-05",null,null,null,null,null,null,null,null,null,null,null,null,null,null,null,null,""]
["2021-06-06",null,null,null,null,null,null,null,null,null,null,null,null,null,null,null,null,""]
["2021-06-07",null,null,null,null,null,null,null,null,null,null,null,null,null,null,null,null,""]
["2021-06-08",null,null,null,null,null,null,null,null,null,null,null,null,null,null,null,null,""]
["2021-06-09",null,null,null,null,null,null,null,null,null,null,null,null,null,null,null,null,""]
["2021-06-10",null,null,null,null,null,null,null,null,null,null,null,null,null,null,null,null,""]
["2021-06-11",null,null,null,null,null,null,null,null,null,null,null,null,null,null,null,null,""]
["2021-06-12",null,null,null,null,null,null,null,null,null,null,null,null,null,null,null,null,""]
["2021-06-13",null,null,null,null,null,null,null,null,null,null,null,null,null,null,null,null,""]
["2021-06-14",null,null,null,null,null,null,null,null,null,null,null,null,null,null,null,null,""]
["2021-06-15",null,null,null,null,null,null,null,null,null,null,null,null,null,null,null,null,""]
["2021-06-16",null,null,null,null,null,null,null,null,null,null,null,null,null,null,null,null,""]
["2021-06-17",null,null,null,null,null,null,null,null,null,null,null,null,null,null,null,null,""]
["2021-06-18",null,null,null,null,null,null,null,null,null,null,null,null,null,null,null,null,""]
["2021-06-19",null,null,null,null,null,null,null,null,null,null,null,null,null,null,null,null,""]
["2021-06-20",null,null,null,null,null,null,null,null,null,null,null,null,null,null,null,null,""]
["2021-06-21",null,null,null,null,null,null,null,null,null,null,null,null,null,null,null,null,""]
["2021-06-22",null,null,null,null,null,null,null,null,null,null,null,null,null,null,null,null,""]
["2021-06-23",null,null,null,null,null,null,null,null,null,null,null,null,null,null,null,null,""]
["2021-06-24",null,null,null,null,null,null,null,null,null,null,null,null,null,null,null,null,""]
["2021-06-25",null,null,null,null,null,null,null,null,null,null,null,null,null,null,null,null,""]
["2021-06-26",null,null,null,null,null,null,null,null,null,null,null,null,null,null,null,null,""]
["2021-06-27",null,null,null,null,null,null,null,null,null,null,null,null,null,null,null,null,""]
["2021-06-28",null,null,null,null,null,null,null,null,null,null,null,null,null,null,null,null,""]
["2021-06-29",null,null,null,null,null,null,null,null,null,null,null,null,null,null,null,null,""]
["2021-06-30",null,null,null,null,null,null,null,null,null,null,null,null,null,null,null,null,""]
["2021-07-01",null,null,null,null,null,null,null,null,null,null,null,null,null,null,null,null,""]
["2021-07-02",null,null,null,null,null,null,null,null,null,null,null,null,null,null,null,null,""]
["2021-07-03",null,null,null,null,null,null,null,null,null,null,null,null,null,null,null,null,""]
["2021-07-04",null,null,null,null,null,null,null,null,null,null,null,null,null,null,null,null,""]
["2021-07-05",null,null,null,null,null,null,null,null,null,null,null,null,null,null,null,null,""]
["2021-07-06",null,null,null,null,null,null,null,null,null,null,null,null,null,null,null,null,""]
["2021-07-07",null,null,null,null,null,null,null,null,null,null,null,null,null,null,null,null,""]
["2021-07-08",null,null,null,null,null,null,null,null,null,null,null,null,null,null,null,null,""]
["2021-07-09",null,null,null,null,null,null,null,null,null,null,null,null,null,null,null,null,""]
["2021-07-10",null,null,null,null,null,null,null,null,null,null,null,null,null,null,null,null,""]
["2021-07-11",null,null,null,null,null,null,null,null,null,null,null,null,null,null,null,null,""]
["2021-07-12",null,null,null,null,null,null,null,null,null,null,null,null,null,null,null,null,{"$f":"IF(A193=TODAY(),MOD(ROW(),2),\"\")","v":""}]
["2021-07-13",null,null,null,null,null,null,null,null,null,null,null,null,null,null,null,null,""]
[{"$f":"A194+1","v":"2021-07-14"},null,null,null,null,null,null,null,null,null,null,null,null,null,null,null,null,""]
["2021-07-15",null,null,null,null,null,null,null,null,null,null,null,null,null,null,null,null,""]
["2021-07-16",null,null,null,null,null,null,null,null,null,null,null,null,null,null,null,null,""]
["2021-07-17",null,null,null,null,null,null,null,null,null,null,null,null,null,null,null,null,""]
["2021-07-18",null,null,null,null,null,null,null,null,null,null,null,null,null,null,null,null,""]
["2021-07-19",null,null,null,null,null,null,null,null,null,null,null,null,null,null,null,null,""]
["2021-07-20",null,null,null,null,null,null,null,null,null,null,null,null,null,null,null,null,""]
["2021-07-21",null,null,null,null,null,null,null,null,null,null,null,null,null,null,null,null,""]
["2021-07-22",null,null,null,null,null,null,null,null,null,null,null,null,null,null,null,null,""]
["2021-07-23",null,null,null,null,null,null,null,null,null,null,null,null,null,null,null,null,""]
["2021-07-24",null,null,null,null,null,null,null,null,null,null,null,null,null,null,null,null,""]
["2021-07-25",null,null,null,null,null,null,null,null,null,null,null,null,null,null,null,null,""]
["2021-07-26",null,null,null,null,null,null,null,null,null,null,null,null,null,null,null,null,""]
["2021-07-27",null,null,null,null,null,null,null,null,null,null,null,null,null,null,null,null,""]
["2021-07-28",null,null,null,null,null,null,null,null,null,null,null,null,null,null,null,null,""]
["2021-07-29",null,null,null,null,null,null,null,null,null,null,null,null,null,null,null,null,""]
["2021-07-30",null,null,null,null,null,null,null,null,null,null,null,null,null,null,null,null,""]
["2021-07-31",null,null,null,null,null,null,null,null,null,null,null,null,null,null,null,null,""]
["2021-08-01",null,null,null,null,null,null,null,null,null,null,null,null,null,null,null,null,""]
["2021-08-02",null,null,null,null,null,null,null,null,null,null,null,null,null,null,null,null,""]
["2021-08-03",null,null,null,null,null,null,null,null,null,null,null,null,null,null,null,null,""]
["2021-08-04",null,null,null,null,null,null,null,null,null,null,null,null,null,null,null,null,""]
["2021-08-05",null,null,null,null,null,null,null,null,null,null,null,null,null,null,null,null,""]
["2021-08-06",null,null,null,null,null,null,null,null,null,null,null,null,null,null,null,null,""]
["2021-08-07",null,null,null,null,null,null,null,null,null,null,null,null,null,null,null,null,""]
["2021-08-08",null,null,null,null,null,null,null,null,null,null,null,null,null,null,null,null,""]
["2021-08-09",null,null,null,null,null,null,null,null,null,null,null,null,null,null,null,null,""]
["2021-08-10",null,null,null,null,null,null,null,null,null,null,null,null,null,null,null,null,""]
["2021-08-11",null,null,null,null,null,null,null,null,null,null,null,null,null,null,null,null,""]
["2021-08-12",null,null,null,null,null,null,null,null,null,null,null,null,null,null,null,null,""]
["2021-08-13",null,null,null,null,null,null,null,null,null,null,null,null,null,null,null,null,""]
["2021-08-14",null,null,null,null,null,null,null,null,null,null,null,null,null,null,null,null,""]
["2021-08-15",null,null,null,null,null,null,null,null,null,null,null,null,null,null,null,null,""]
["2021-08-16",null,null,null,null,null,null,null,null,null,null,null,null,null,null,null,null,""]
["2021-08-17",null,null,null,null,null,null,null,null,null,null,null,null,null,null,null,null,""]
["2021-08-18",null,null,null,null,null,null,null,null,null,null,null,null,null,null,null,null,""]
["2021-08-19",null,null,null,null,null,null,null,null,null,null,null,null,null,null,null,null,""]
["2021-08-20",null,null,null,null,null,null,null,null,null,null,null,null,null,null,null,null,""]
["2021-08-21",null,null,null,null,null,null,null,null,null,null,null,null,null,null,null,null,""]
["2021-08-22",null,null,null,null,null,null,null,null,null,null,null,null,null,null,null,null,""]
["2021-08-23",null,null,null,null,null,null,null,null,null,null,null,null,null,null,null,null,""]
["2021-08-24",null,null,null,null,null,null,null,null,null,null,null,null,null,null,null,null,""]
["2021-08-25",null,null,null,null,null,null,null,null,null,null,null,null,null,null,null,null,""]
["2021-08-26",null,null,null,null,null,null,null,null,null,null,null,null,null,null,null,null,""]
["2021-08-27",null,null,null,null,null,null,null,null,null,null,null,null,null,null,null,null,""]
["2021-08-28",null,null,null,null,null,null,null,null,null,null,null,null,null,null,null,null,""]
["2021-08-29",null,null,null,null,null,null,null,null,null,null,null,null,null,null,null,null,""]
["2021-08-30",null,null,null,null,null,null,null,null,null,null,null,null,null,null,null,null,""]
["2021-08-31",null,null,null,null,null,null,null,null,null,null,null,null,null,null,null,null,""]
["2021-09-01",null,null,null,null,null,null,null,null,null,null,null,null,null,null,null,null,""]
["2021-09-02",null,null,null,null,null,null,null,null,null,null,null,null,null,null,null,null,""]
["2021-09-03",null,null,null,null,null,null,null,null,null,null,null,null,null,null,null,null,""]
["2021-09-04",null,null,null,null,null,null,null,null,null,null,null,null,null,null,null,null,""]
["2021-09-05",null,null,null,null,null,null,null,null,null,null,null,null,null,null,null,null,""]
["2021-09-06",null,null,null,null,null,null,null,null,null,null,null,null,null,null,null,null,""]
["2021-09-07",null,null,null,null,null,null,null,null,null,null,null,null,null,null,null,null,""]
["2021-09-08",null,null,null,null,null,null,null,null,null,null,null,null,null,null,null,null,""]
["2021-09-09",null,null,null,null,null,null,null,null,null,null,null,null,null,null,null,null,""]
["2021-09-10",null,null,null,null,null,null,null,null,null,null,null,null,null,null,null,null,""]
["2021-09-11",null,null,null,null,null,null,null,null,null,null,null,null,null,null,null,null,""]
["2021-09-12",null,null,null,null,null,null,null,null,null,null,null,null,null,null,null,null,""]
["2021-09-13",null,null,null,null,null,null,null,null,null,null,null,null,null,null,null,null,""]
["2021-09-14",null,null,null,null,null,null,null,null,null,null,null,null,null,null,null,null,{"$f":"IF(A257=TODAY(),MOD(ROW(),2),\"\")","v":""}]
["2021-09-15",null,null,null,null,null,null,null,null,null,null,null,null,null,null,null,null,""]
[{"$f":"A258+1","v":"2021-09-16"},null,null,null,null,null,null,null,null,null,null,null,null,null,null,null,null,""]
["2021-09-17",null,null,null,null,null,null,null,null,null,null,null,null,null,null,null,null,""]
["2021-09-18",null,null,null,null,null,null,null,null,null,null,null,null,null,null,null,null,""]
["2021-09-19",null,null,null,null,null,null,null,null,null,null,null,null,null,null,null,null,""]
["2021-09-20",null,null,null,null,null,null,null,null,null,null,null,null,null,null,null,null,""]
["2021-09-21",null,null,null,null,null,null,null,null,null,null,null,null,null,null,null,null,""]
["2021-09-22",null,null,null,null,null,null,null,null,null,null,null,null,null,null,null,null,""]
["2021-09-23",null,null,null,null,null,null,null,null,null,null,null,null,null,null,null,null,""]
["2021-09-24",null,null,null,null,null,null,null,null,null,null,null,null,null,null,null,null,""]
["2021-09-25",null,null,null,null,null,null,null,null,null,null,null,null,null,null,null,null,""]
["2021-09-26",null,null,null,null,null,null,null,null,null,null,null,null,null,null,null,null,""]
["2021-09-27",null,null,null,null,null,null,null,null,null,null,null,null,null,null,null,null,""]
["2021-09-28",null,null,null,null,null,null,null,null,null,null,null,null,null,null,null,null,""]
["2021-09-29",null,null,null,null,null,null,null,null,null,null,null,null,null,null,null,null,""]
["2021-09-30",null,null,null,null,null,null,null,null,null,null,null,null,null,null,null,null,""]
["2021-10-01",null,null,null,null,null,null,null,null,null,null,null,null,null,null,null,null,""]
["2021-10-02",null,null,null,null,null,null,null,null,null,null,null,null,null,null,null,null,""]
["2021-10-03",null,null,null,null,null,null,null,null,null,null,null,null,null,null,null,null,""]
["2021-10-04",null,null,null,null,null,null,null,null,null,null,null,null,null,null,null,null,""]
["2021-10-05",null,null,null,null,null,null,null,null,null,null,null,null,null,null,null,null,""]
["2021-10-06",null,null,null,null,null,null,null,null,null,null,null,null,null,null,null,null,""]
["2021-10-07",null,null,null,null,null,null,null,null,null,null,null,null,null,null,null,null,""]
["2021-10-08",null,null,null,null,null,null,null,null,null,null,null,null,null,null,null,null,""]
["2021-10-09",null,null,null,null,null,null,null,null,null,null,null,null,null,null,null,null,""]
["2021-10-10",null,null,null,null,null,null,null,null,null,null,null,null,null,null,null,null,""]
["2021-10-11",null,null,null,null,null,null,null,null,null,null,null,null,null,null,null,null,""]
["2021-10-12",null,null,null,null,null,null,null,null,null,null,null,null,null,null,null,null,""]
["2021-10-13",null,null,null,null,null,null,null,null,null,null,null,null,null,null,null,null,""]
["2021-10-14",null,null,null,null,null,null,null,null,null,null,null,null,null,null,null,null,""]
["2021-10-15",null,null,null,null,null,null,null,null,null,null,null,null,null,null,null,null,""]
["2021-10-16",null,null,null,null,null,null,null,null,null,null,null,null,null,null,null,null,""]
["2021-10-17",null,null,null,null,null,null,null,null,null,null,null,null,null,null,null,null,""]
["2021-10-18",null,null,null,null,null,null,null,null,null,null,null,null,null,null,null,null,""]
["2021-10-19",null,null,null,null,null,null,null,null,null,null,null,null,null,null,null,null,""]
["2021-10-20",null,null,null,null,null,null,null,null,null,null,null,null,null,null,null,null,""]
["2021-10-21",null,null,null,null,null,null,null,null,null,null,null,null,null,null,null,null,""]
["2021-10-22",null,null,null,null,null,null,null,null,null,null,null,null,null,null,null,null,""]
["2021-10-23",null,null,null,null,null,null,null,null,null,null,null,null,null,null,null,null,""]
["2021-10-24",null,null,null,null,null,null,null,null,null,null,null,null,null,null,null,null,""]
["2021-10-25",null,null,null,null,null,null,null,null,null,null,null,null,null,null,null,null,""]
["2021-10-26",null,null,null,null,null,null,null,null,null,null,null,null,null,null,null,null,""]
["2021-10-27",null,null,null,null,null,null,null,null,null,null,null,null,null,null,null,null,""]
["2021-10-28",null,null,null,null,null,null,null,null,null,null,null,null,null,null,null,null,""]
["2021-10-29",null,null,null,null,null,null,null,null,null,null,null,null,null,null,null,null,""]
["2021-10-30",null,null,null,null,null,null,null,null,null,null,null,null,null,null,null,null,""]
["2021-10-31",null,null,null,null,null,null,null,null,null,null,null,null,null,null,null,null,""]
["2021-11-01",null,null,null,null,null,null,null,null,null,null,null,null,null,null,null,null,""]
["2021-11-02",null,null,null,null,null,null,null,null,null,null,null,null,null,null,null,null,""]
["2021-11-03",null,null,null,null,null,null,null,null,null,null,null,null,null,null,null,null,""]
["2021-11-04",null,null,null,null,null,null,null,null,null,null,null,null,null,null,null,null,""]
["2021-11-05",null,null,null,null,null,null,null,null,null,null,null,null,null,null,null,null,""]
["2021-11-06",null,null,null,null,null,null,null,null,null,null,null,null,null,null,null,null,""]
["2021-11-07",null,null,null,null,null,null,null,null,null,null,null,null,null,null,null,null,""]
["2021-11-08",null,null,null,null,null,null,null,null,null,null,null,null,null,null,null,null,""]
["2021-11-09",null,null,null,null,null,null,null,null,null,null,null,null,null,null,null,null,""]
["2021-11-10",null,null,null,null,null,null,null,null,null,null,null,null,null,null,null,null,""]
["2021-11-11",null,null,null,null,null,null,null,null,null,null,null,null,null,null,null,null,""]
["2021-11-12",null,null,null,null,null,null,null,null,null,null,null,null,null,null,null,null,""]
["2021-11-13",null,null,null,null,null,null,null,null,null,null,null,null,null,null,null,null,""]
["2021-11-14",null,null,null,null,null,null,null,null,null,null,null,null,null,null,null,null,""]
["2021-11-15",null,null,null,null,null,null,null,null,null,null,null,null,null,null,null,null,""]
["2021-11-16",null,null,null,null,null,null,null,null,null,null,null,null,null,null,null,null,""]
["2021-11-17",null,null,null,null,null,null,null,null,null,null,null,null,null,null,null,null,{"$f":"IF(A321=TODAY(),MOD(ROW(),2),\"\")","v":""}]
["2021-11-18",null,null,null,null,null,null,null,null,null,null,null,null,null,null,null,null,""]
[{"$f":"A322+1","v":"2021-11-19"},null,null,null,null,null,null,null,null,null,null,null,null,null,null,null,null,""]
["2021-11-20",null,null,null,null,null,null,null,null,null,null,null,null,null,null,null,null,""]
["2021-11-21",null,null,null,null,null,null,null,null,null,null,null,null,null,null,null,null,""]
["2021-11-22",null,null,null,null,null,null,null,null,null,null,null,null,null,null,null,null,""]
["2021-11-23",null,null,null,null,null,null,null,null,null,null,null,null,null,null,null,null,""]
["2021-11-24",null,null,null,null,null,null,null,null,null,null,null,null,null,null,null,null,""]
["2021-11-25",null,null,null,null,null,null,null,null,null,null,null,null,null,null,null,null,""]
["2021-11-26",null,null,null,null,null,null,null,null,null,null,null,null,null,null,null,null,""]
["2021-11-27",null,null,null,null,null,null,null,null,null,null,null,null,null,null,null,null,""]
["2021-11-28",null,null,null,null,null,null,null,null,null,null,null,null,null,null,null,null,""]
["2021-11-29",null,null,null,null,null,null,null,null,null,null,null,null,null,null,null,null,""]
["2021-11-30",null,null,null,null,null,null,null,null,null,null,null,null,null,null,null,null,""]
["2021-12-01",null,null,null,null,null,null,null,null,null,null,null,null,null,null,null,null,""]
["2021-12-02",null,null,null,null,null,null,null,null,null,null,null,null,null,null,null,null,""]
["2021-12-03",null,null,null,null,null,null,null,null,null,null,null,null,null,null,null,null,""]
["2021-12-04",null,null,null,null,null,null,null,null,null,null,null,null,null,null,null,null,""]
["2021-12-05",null,null,null,null,null,null,null,null,null,null,null,null,null,null,null,null,""]
["2021-12-06",null,null,null,null,null,null,null,null,null,null,null,null,null,null,null,null,""]
["2021-12-07",null,null,null,null,null,null,null,null,null,null,null,null,null,null,null,null,""]
["2021-12-08",null,null,null,null,null,null,null,null,null,null,null,null,null,null,null,null,""]
["2021-12-09",null,null,null,null,null,null,null,null,null,null,null,null,null,null,null,null,""]
["2021-12-10",null,null,null,null,null,null,null,null,null,null,null,null,null,null,null,null,""]
["2021-12-11",null,null,null,null,null,null,null,null,null,null,null,null,null,null,null,null,""]
["2021-12-12",null,null,null,null,null,null,null,null,null,null,null,null,null,null,null,null,""]
["2021-12-13",null,null,null,null,null,null,null,null,null,null,null,null,null,null,null,null,""]
["2021-12-14",null,null,null,null,null,null,null,null,null,null,null,null,null,null,null,null,""]
["2021-12-15",null,null,null,null,null,null,null,null,null,null,null,null,null,null,null,null,""]
["2021-12-16",null,null,null,null,null,null,null,null,null,null,null,null,null,null,null,null,""]
["2021-12-17",null,null,null,null,null,null,null,null,null,null,null,null,null,null,null,null,""]
["2021-12-18",null,null,null,null,null,null,null,null,null,null,null,null,null,null,null,null,""]
["2021-12-19",null,null,null,null,null,null,null,null,null,null,null,null,null,null,null,null,""]
["2021-12-20",null,null,null,null,null,null,null,null,null,null,null,null,null,null,null,null,""]
["2021-12-21",null,null,null,null,null,null,null,null,null,null,null,null,null,null,null,null,""]
["2021-12-22",null,null,null,null,null,null,null,null,null,null,null,null,null,null,null,null,""]
["2021-12-23",null,null,null,null,null,null,null,null,null,null,null,null,null,null,null,null,""]
["2021-12-24",null,null,null,null,null,null,null,null,null,null,null,null,null,null,null,null,""]
["2021-12-25",null,null,null,null,null,null,null,null,null,null,null,null,null,null,null,null,""]
["2021-12-26",null,null,null,null,null,null,null,null,null,null,null,null,null,null,null,null,""]
["2021-12-27",null,null,null,null,null,null,null,null,null,null,null,null,null,null,null,null,""]
["2021-12-28",null,null,null,null,null,null,null,null,null,null,null,null,null,null,null,null,""]
["2021-12-29",null,null,null,null,null,null,null,null,null,null,null,null,null,null,null,null,""]
["2021-12-30",null,null,null,null,null,null,null,null,null,null,null,null,null,null,null,null,""]
["2021-12-31",null,null,null,null,null,null,null,null,null,null,null,null,null,null,null,null,""]
["2022-01-01",null,null,null,null,null,null,null,null,null,null,null,null,null,null,null,null,""]
["2022-01-02"]
["2022-01-03"]
["2022-01-04"]
["2022-01-05"]
["2022-01-06"]
["2022-01-07"]
["2022-01-08"]
["2022-01-09"]
["2022-01-10"]
["2022-01-11"]
["2022-01-12"]
["2022-01-13"]
["2022-01-14"]
["2022-01-15"]
["2022-01-16"]
["2022-01-17"]
["2022-01-18"]
["2022-01-19"]
["2022-01-20"]
["2022-01-21"]
[{"$f":"A386+1","v":"2022-01-22"}]
["2022-01-23"]
["2022-01-24"]
["2022-01-25"]
["2022-01-26"]
["2022-01-27"]
["2022-01-28"]
["2022-01-29"]
["2022-01-30"]
["2022-01-31"]
["2022-02-01"]
["2022-02-02"]
["2022-02-03"]
["2022-02-04"]
["2022-02-05"]
["2022-02-06"]
["2022-02-07"]
["2022-02-08"]
["2022-02-09"]
["2022-02-10"]
["2022-02-11"]
["2022-02-12"]
["2022-02-13"]
["2022-02-14"]
["2022-02-15"]
["2022-02-16"]
["2022-02-17"]
["2022-02-18"]
["2022-02-19"]
["2022-02-20"]
["2022-02-21"]
["2022-02-22"]
["2022-02-23"]
["2022-02-24"]
["2022-02-25"]
["2022-02-26"]
["2022-02-27"]
["2022-02-28"]
["2022-03-01"]
["2022-03-02"]
["2022-03-03"]
["2022-03-04"]
["2022-03-05"]
["2022-03-06"]
["2022-03-07"]
["2022-03-08"]
["2022-03-09"]
["2022-03-10"]
["2022-03-11"]
["2022-03-12"]
["2022-03-13"]
["2022-03-14"]
["2022-03-15"]
["2022-03-16"]
["2022-03-17"]
["2022-03-18"]
["2022-03-19"]
["2022-03-20"]
["2022-03-21"]
["2022-03-22"]
["2022-03-23"]
["2022-03-24"]
["2022-03-25"]
["2022-03-26"]
[{"$f":"A450+1","v":"2022-03-27"}]
["2022-03-28"]
["2022-03-29"]
["2022-03-30"]
["2022-03-31"]
["2022-04-01"]
["2022-04-02"]
["2022-04-03"]
["2022-04-04"]
["2022-04-05"]
["2022-04-06"]
["2022-04-07"]
["2022-04-08"]
["2022-04-09"]
["2022-04-10"]
["2022-04-11"]
["2022-04-12"]
["2022-04-13"]
["2022-04-14"]
["2022-04-15"]
["2022-04-16"]
["2022-04-17"]
["2022-04-18"]
["2022-04-19"]
["2022-04-20"]
["2022-04-21"]
["2022-04-22"]
["2022-04-23"]
["2022-04-24"]
["2022-04-25"]
["2022-04-26"]
["2022-04-27"]
["2022-04-28"]
["2022-04-29"]
["2022-04-30"]
["2022-05-01"]
["2022-05-02"]
["2022-05-03"]
["2022-05-04"]
["2022-05-05"]
["2022-05-06"]
["2022-05-07"]
["2022-05-08"]
["2022-05-09"]
["2022-05-10"]
["2022-05-11"]
["2022-05-12"]
["2022-05-13"]
["2022-05-14"]
["2022-05-15"]
["2022-05-16"]
["2022-05-17"]
["2022-05-18"]
["2022-05-19"]
["2022-05-20"]
["2022-05-21"]
["2022-05-22"]
["2022-05-23"]
["2022-05-24"]
["2022-05-25"]
["2022-05-26"]
["2022-05-27"]
["2022-05-28"]
["2022-05-29"]
[{"$f":"A514+1","v":"2022-05-30"}]
["2022-05-31"]
["2022-06-01"]
["2022-06-02"]
["2022-06-03"]
["2022-06-04"]
["2022-06-05"]
["2022-06-06"]
["2022-06-07"]
["2022-06-08"]
["2022-06-09"]
["2022-06-10"]
["2022-06-11"]
["2022-06-12"]
["2022-06-13"]
["2022-06-14"]
["2022-06-15"]
["2022-06-16"]
["2022-06-17"]
["2022-06-18"]
["2022-06-19"]
["2022-06-20"]
["2022-06-21"]
["2022-06-22"]
["2022-06-23"]
["2022-06-24"]
["2022-06-25"]
["2022-06-26"]
["2022-06-27"]
["2022-06-28"]
["2022-06-29"]
["2022-06-30"]
["2022-07-01"]
["2022-07-02"]
["2022-07-03"]
["2022-07-04"]
["2022-07-05"]
["2022-07-06"]
["2022-07-07"]
["2022-07-08"]
["2022-07-09"]
["2022-07-10"]
["2022-07-11"]
["2022-07-12"]
["2022-07-13"]
["2022-07-14"]
["2022-07-15"]
["2022-07-16"]
["2022-07-17"]
["2022-07-18"]
["2022-07-19"]
["2022-07-20"]
["2022-07-21"]
["2022-07-22"]
["2022-07-23"]
["2022-07-24"]
["2022-07-25"]
["2022-07-26"]
["2022-07-27"]
["2022-07-28"]
["2022-07-29"]
["2022-07-30"]
["2022-07-31"]
["2022-08-01"]
[{"$f":"A578+1","v":"2022-08-02"}]
["2022-08-03"]
["2022-08-04"]
["2022-08-05"]
["2022-08-06"]
["2022-08-07"]
["2022-08-08"]
["2022-08-09"]
["2022-08-10"]
["2022-08-11"]
["2022-08-12"]
["2022-08-13"]
["2022-08-14"]
["2022-08-15"]
["2022-08-16"]
["2022-08-17"]
["2022-08-18"]
["2022-08-19"]
["2022-08-20"]
["2022-08-21"]
["2022-08-22"]
["2022-08-23"]
["2022-08-24"]
["2022-08-25"]
["2022-08-26"]
["2022-08-27"]
["2022-08-28"]
["2022-08-29"]
["2022-08-30"]
["2022-08-31"]
["2022-09-01"]
["2022-09-02"]
["2022-09-03"]
["2022-09-04"]
["2022-09-05"]
["2022-09-06"]
["2022-09-07"]
["2022-09-08"]
["2022-09-09"]
["2022-09-10"]
["2022-09-11"]
["2022-09-12"]
["2022-09-13"]
["2022-09-14"]
["2022-09-15"]
["2022-09-16"]
["2022-09-17"]
["2022-09-18"]
["2022-09-19"]
["2022-09-20"]
["2022-09-21"]
["2022-09-22"]
["2022-09-23"]
["2022-09-24"]
["2022-09-25"]
["2022-09-26"]
["2022-09-27"]
["2022-09-28"]
["2022-09-29"]
["2022-09-30"]
["2022-10-01"]
["2022-10-02"]
["2022-10-03"]
["2022-10-04"]
[{"$f":"A642+1","v":"2022-10-05"}]
["2022-10-06"]
["2022-10-07"]
["2022-10-08"]
["2022-10-09"]
["2022-10-10"]
["2022-10-11"]
["2022-10-12"]
["2022-10-13"]
["2022-10-14"]
["2022-10-15"]
["2022-10-16"]
["2022-10-17"]
["2022-10-18"]
["2022-10-19"]
["2022-10-20"]
["2022-10-21"]
["2022-10-22"]
["2022-10-23"]
["2022-10-24"]
["2022-10-25"]
["2022-10-26"]
["2022-10-27"]
["2022-10-28"]
["2022-10-29"]
["2022-10-30"]
["2022-10-31"]
["2022-11-01"]
["2022-11-02"]
["2022-11-03"]
["2022-11-04"]
["2022-11-05"]
["2022-11-06"]
["2022-11-07"]
["2022-11-08"]
["2022-11-09"]
["2022-11-10"]
["2022-11-11"]
["2022-11-12"]
["2022-11-13"]
["2022-11-14"]
["2022-11-15"]
["2022-11-16"]
["2022-11-17"]
["2022-11-18"]
["2022-11-19"]
["2022-11-20"]
["2022-11-21"]
["2022-11-22"]
["2022-11-23"]
["2022-11-24"]
["2022-11-25"]
["2022-11-26"]
["2022-11-27"]
["2022-11-28"]
["2022-11-29"]
["2022-11-30"]
["2022-12-01"]
["2022-12-02"]
["2022-12-03"]
["2022-12-04"]
["2022-12-05"]
["2022-12-06"]
["2022-12-07"]
[{"$f":"A706+1","v":"2022-12-08"}]
["2022-12-09"]
["2022-12-10"]
["2022-12-11"]
["2022-12-12"]
["2022-12-13"]
["2022-12-14"]
["2022-12-15"]
["2022-12-16"]
["2022-12-17"]
["2022-12-18"]
["2022-12-19"]
["2022-12-20"]
["2022-12-21"]
["2022-12-22"]
["2022-12-23"]
["2022-12-24"]
["2022-12-25"]
["2022-12-26"]
["2022-12-27"]
["2022-12-28"]
["2022-12-29"]
["2022-12-30"]
["2022-12-31"]
["2023-01-01"]
["2023-01-02"]
["2023-01-03"]
["2023-01-04"]
["2023-01-05"]
["2023-01-06"]
["2023-01-07"]
["2023-01-08"]
["2023-01-09"]
["2023-01-10"]
["2023-01-11"]
["2023-01-12"]
["2023-01-13"]
["2023-01-14"]
["2023-01-15"]
["2023-01-16"]
["2023-01-17"]
["2023-01-18"]
["2023-01-19"]
["2023-01-20"]
["2023-01-21"]
["2023-01-22"]
["2023-01-23"]
["2023-01-24"]
["2023-01-25"]
["2023-01-26"]
["2023-01-27"]
["2023-01-28"]
["2023-01-29"]
["2023-01-30"]
["2023-01-31"]
["2023-02-01"]
["2023-02-02"]
["2023-02-03"]
["2023-02-04"]

{"sheet":"Blad3","index":1,"n_rows":20,"n_cols":6,"rows_kept":20,"cut":false,"hidden":false,"merged":[]}
[null,"zet hier email van apotheek","medicijnen"]
[]
["Kolom A wordt autom. Ingevuld.",null,null,null,null,"Gaarne onderstaande medicijnen:"]
[]
[{"$f":"IFERROR(VLOOKUP(ROW()-4,tal,1,0),\"\")","v":""},{"$f":"IF(Blad2!C8=\"\",\"\",Blad2!C8)","v":""},{"$f":"IF(Blad2!E8=\"\",\"\",Blad2!E8)","v":""},null,null,{"$f":"IFERROR(VLOOKUP(SMALL(volgnummer,ROW()-4),recept,2,0)&\"        \" &VLOOKUP(SMALL(volgnummer,ROW()-4),recept,3,0),\"\")","v":""}]
["",{"$f":"IF(Blad2!C9=\"\",\"\",Blad2!C9)","v":""},{"$f":"IF(Blad2!E9=\"\",\"\",Blad2!E9)","v":""},null,null,""]
["",{"$f":"IF(Blad2!C10=\"\",\"\",Blad2!C10)","v":""},{"$f":"IF(Blad2!E10=\"\",\"\",Blad2!E10)","v":""},null,null,""]
["",{"$f":"IF(Blad2!C11=\"\",\"\",Blad2!C11)","v":""},{"$f":"IF(Blad2!E11=\"\",\"\",Blad2!E11)","v":""},null,null,""]
["",{"$f":"IF(Blad2!C12=\"\",\"\",Blad2!C12)","v":""},{"$f":"IF(Blad2!E12=\"\",\"\",Blad2!E12)","v":""},null,null,""]
["",{"$f":"IF(Blad2!C13=\"\",\"\",Blad2!C13)","v":""},{"$f":"IF(Blad2!E13=\"\",\"\",Blad2!E13)","v":""},null,null,""]
["",{"$f":"IF(Blad2!C14=\"\",\"\",Blad2!C14)","v":""},{"$f":"IF(Blad2!E14=\"\",\"\",Blad2!E14)","v":""},null,null,""]
["",{"$f":"IF(Blad2!C15=\"\",\"\",Blad2!C15)","v":""},{"$f":"IF(Blad2!E15=\"\",\"\",Blad2!E15)","v":""},null,null,""]
["",{"$f":"IF(Blad2!C16=\"\",\"\",Blad2!C16)","v":""},{"$f":"IF(Blad2!E16=\"\",\"\",Blad2!E16)","v":""}]
["",{"$f":"IF(Blad2!C17=\"\",\"\",Blad2!C17)","v":""},{"$f":"IF(Blad2!E17=\"\",\"\",Blad2!E17)","v":""},null,null,"Met vriendelijke groeten,"]
["",{"$f":"IF(Blad2!C18=\"\",\"\",Blad2!C18)","v":""},{"$f":"IF(Blad2!E18=\"\",\"\",Blad2!E18)","v":""},null,null,"naam"]
["",{"$f":"IF(Blad2!C19=\"\",\"\",Blad2!C19)","v":""},{"$f":"IF(Blad2!E19=\"\",\"\",Blad2!E19)","v":""},null,null,"adrres"]
[null,null,null,null,null,"plaats en postcode"]
[null,null,null,null,null,"BSN "]
[null,null,null,null,null,"Geb. datum:"]
[null,null,null,null,null,"GSM:"]